bitfinex/quotes_ETHUSD_20251124
["timestamp","ask_amount","ask_price","bid_price","bid_amount"]
[1764017266902,0.002,2985.7,2985.1,4.00406223]
[1764017267197,0.002,2985.7,2985.1,4.42596845]
[1764017267495,0.002,2985.7,2985.6,0.4731]
[1764017267727,0.002,2985.7,2985.6,0.9551]
[1764017268013,0.6528,2985.7,2985.2,0.696]
[1764017268164,0.6528,2985.7,2985.2,0.214]
[1764017268365,0.6528,2985.7,2985.2,0.482]
[1764017268984,3.34952269,2985.5,2985.1,0.1909]
[1764017269220,3.34952269,2985.5,2984.9,0.001]
[1764017269221,6.69904538,2985.5,2984.9,0.001]
[1764017269424,0.405504,2985.4,2984.9,0.001]
[1764017270025,0.002,2985.7,2985.3,0.6902]
[1764017270331,0.405504,2985.6,2985.1,0.214]
[1764017270621,0.405504,2985.6,2985.0,0.4518]
[1764017271288,3.34952269,2985.5,2985.0,0.4518]
[1764017271626,3.34952269,2985.5,2984.9,0.001]
[1764017271990,3.34952269,2985.5,2984.9,3.35119408]
[1764017272208,0.405504,2985.6,2985.0,0.4518]
[1764017272714,0.002,2985.7,2985.1,0.1997]
[1764017272916,0.002,2985.7,2985.2,0.4518]
[1764017273090,0.002,2985.7,2985.2,0.6658]
[1764017273286,0.002,2985.7,2985.3,0.4518]
[1764017273483,0.002,2985.7,2985.6,0.4905]
[1764017274218,0.002,2985.7,2985.6,0.9423]
[1764017275011,0.002,2985.7,2985.6,0.4905]
[1764017275918,0.002,2985.7,2985.4,3.34960461]
[1764017276084,0.002,2985.7,2985.4,0.4518]
[1764017276284,0.002,2985.7,2985.2,3.56380254]
[1764017276484,0.002,2985.7,2985.2,4.01560254]
[1764017276718,0.002,2985.7,2985.2,0.6658]
[1764017277286,0.002,2985.7,2985.2,4.01565459]
[1764017277486,0.0571,2985.3,2984.9,0.001]
[1764017277687,0.884804,2985.0,2984.9,0.001]
[1764017278096,0.405504,2985.0,2984.9,0.001]
[1764017278296,0.462604,2985.0,2984.9,0.001]
[1764017278625,0.405504,2985.0,2984.9,0.001]
[1764017279188,0.405504,2985.5,2984.9,4.50749598]
[1764017279506,3.75502818,2985.5,2984.9,1.1573]
[1764017279719,0.85374364,2985.5,2984.9,4.50746323]
[1764017280088,3.79785122,2985.5,2984.9,1.1573]
[1764017280296,0.4793,2985.0,2984.9,0.001]
[1764017280519,0.475504,2985.4,2984.9,0.001]
[1764017280699,0.0571,2985.0,2984.9,0.001]
[1764017281026,0.462604,2985.0,2984.9,0.001]
[1764017281518,3.81268775,2985.0,2984.9,0.001]
[1764017281720,4.30068775,2985.0,2984.9,0.001]
[1764017283521,5.3397808,2985.0,2984.9,0.001]
[1764017283722,6.23015666,2985.0,2984.9,0.001]
[1764017285818,4.70306361,2985.0,2984.9,0.001]
[1764017286124,4.23488775,2985.0,2984.9,0.001]
[1764017286326,4.30488775,2985.0,2984.9,0.001]
[1764017286706,4.23488775,2985.0,2984.9,0.001]
[1764017287497,5.03048186,2985.0,2984.9,0.001]
[1764017287715,5.34370396,2985.0,2984.9,0.001]
[1764017287922,6.23447197,2985.0,2984.9,0.001]
[1764017288999,1.13109811,2984.9,2983.6,3.79033803]
[1764017289230,0.405504,2984.7,2983.6,3.79033803]
[1764017289432,0.405504,2984.5,2983.6,0.43873]
[1764017289595,0.405504,2984.5,2983.6,3.79038571]
[1764017289929,3.75616183,2984.5,2983.6,7.14204142]
[1764017290148,0.405504,2984.5,2983.6,6.70331142]
[1764017290298,0.405504,2984.5,2984.4,0.4905]
[1764017290939,0.405504,2984.5,2983.6,6.70331142]
[1764017290940,3.75616387,2984.5,2984.1,0.1997]
[1764017291234,4.48825789,2984.5,2983.7,0.4518]
[1764017291613,4.48825789,2984.5,2983.8,3.35143106]
[1764017292033,4.48825789,2984.5,2983.8,3.80323106]
[1764017292202,3.75584515,2984.8,2983.9,0.4518]
[1764017292538,7.1061863,2984.8,2983.9,0.4518]
[1764017292701,3.75584515,2984.8,2983.9,0.4518]
[1764017293028,7.1061863,2984.8,2983.9,0.4518]
[1764017293729,0.405504,2984.5,2983.9,3.80311781]
[1764017294138,0.405504,2984.5,2983.9,3.35131781]
[1764017294336,0.405504,2984.5,2984.0,0.4518]
[1764017294538,0.72559411,2985.0,2984.4,0.6902]
[1764017294736,0.1165,2984.9,2984.4,0.6902]
[1764017294922,1.13109811,2985.1,2984.5,0.4518]
[1764017295324,0.4923,2985.0,2984.2,0.1997]
[1764017295524,1.33627184,2985.0,2984.2,0.1997]
[1764017295709,4.19409051,2985.0,2984.4,3.35075727]
[1764017295905,4.19407259,2985.0,2984.4,3.35075727]
[1764017296106,0.84397184,2985.0,2984.4,0.4518]
[1764017296436,0.405504,2985.0,2984.3,6.70168414]
[1764017296642,0.002,2985.6,2984.9,0.4905]
[1764017296643,0.1165,2985.5,2984.9,0.4905]
[1764017296842,0.002,2985.6,2984.5,0.4518]
[1764017296843,3.35144523,2985.6,2985.0,0.4905]
[1764017297044,3.35144523,2985.6,2984.6,0.214]
[1764017297045,0.72559411,2985.5,2984.6,0.214]
[1764017297258,0.7642413,2985.5,2984.7,0.4518]
[1764017297752,3.35141138,2985.6,2984.8,6.70061644]
[1764017297957,0.405504,2985.5,2984.8,3.35030822]
[1764017298114,0.405504,2985.5,2984.9,0.4518]
[1764017298732,0.405504,2985.5,2984.8,3.35030822]
[1764017299575,0.405504,2985.5,2984.8,3.80210822]
[1764017300258,4.60904462,2985.5,2984.8,3.80210822]
[1764017300868,1.25951508,2985.5,2984.8,7.15241644]
[1764017301235,1.25951508,2985.5,2984.9,0.4983]
[1764017301852,1.13309811,2985.6,2985.4,0.4523]
[1764017302165,1.13309811,2985.6,2985.5,0.4523]
[1764017302166,0.407504,2985.6,2985.5,0.4523]
[1764017302466,0.407504,2985.6,2984.9,0.4983]
[1764017302467,0.407504,2985.6,2985.0,6.7001675]
[1764017302669,0.407504,2985.6,2985.1,0.6982]
[1764017303329,0.407504,2985.6,2985.2,0.4983]
[1764017303532,0.002,2985.5,2985.2,0.4983]
[1764017303933,0.002,2985.5,2985.4,0.4523]
[1764017304372,0.002,2985.5,2985.4,0.9506]
[1764017304666,0.002,2985.5,2985.4,0.4523]
[1764017304882,0.002,2985.5,2985.1,0.9122]
[1764017305030,0.002,2985.5,2985.1,0.1999]
[1764017305236,0.002,2985.5,2985.0,3.35005522]
[1764017305469,0.002,2985.5,2985.0,7.19843897]
[1764017305632,0.002,2985.5,2985.1,0.6982]
[1764017305855,0.002,2985.5,2985.4,0.4523]
[1764017306481,0.002,2985.9,2985.4,0.9506]
[1764017306659,0.002,2985.9,2985.5,0.9506]
[1764017306864,3.35109636,2985.9,2985.5,0.9506]
[1764017307171,0.69379827,2985.9,2985.5,0.9506]
[1764017307886,4.04287768,2985.9,2985.5,0.4523]
[1764017308087,0.4712,2985.6,2985.2,3.34980863]
[1764017309001,0.4712,2985.6,2985.1,3.54985728]
[1764017309201,0.4712,2985.6,2985.2,0.4983]
[1764017309372,0.405504,2985.7,2985.2,0.4983]
[1764017309766,0.86681957,2985.7,2985.2,0.4983]
[1764017310805,4.67428112,2985.7,2985.1,0.1999]
[1764017311010,0.4712,2985.3,2984.9,3.84943928]
[1764017311169,0.4673,2985.0,2984.9,0.001]
[1764017311364,0.872804,2985.0,2984.9,0.001]
[1764017311568,1.26778715,2985.0,2984.9,0.001]
[1764017312690,5.34346501,2985.0,2984.9,0.001]
[1764017312895,6.21280897,2985.0,2984.9,0.001]
[1764017314612,6.21271858,2985.0,2984.9,0.001]
[1764017316324,6.21265912,2985.0,2984.9,0.001]
[1764017320819,6.16265912,2985.0,2984.9,0.001]
[1764017323015,6.16265912,2985.0,2984.6,0.001]
[1764017323016,4.66709811,2984.9,2984.6,0.001]
[1764017323215,8.13096494,2984.7,2984.6,0.001]
[1764017323524,9.16487896,2984.7,2984.6,0.001]
[1764017323703,9.62297896,2984.7,2984.6,0.001]
[1764017323898,13.15897896,2984.7,2984.6,0.001]
[1764017324131,1.13109811,2984.4,2984.3,0.001]
[1764017324349,1.69873141,2984.4,2984.3,0.001]
[1764017324500,1.4278373,2984.4,2984.3,0.001]
[1764017325138,5.50418868,2984.4,2984.3,0.001]
[1764017328833,5.04948868,2984.4,2984.3,0.001]
[1764017329137,5.88950273,2984.4,2984.3,0.001]
[1764017329305,6.34420273,2984.4,2984.3,0.001]
[1764017330543,5.88950273,2984.4,2984.3,0.001]
[1764017330705,5.57656943,2984.4,2984.3,0.001]
[1764017332042,4.85097532,2984.4,2984.3,0.001]
[1764017332633,5.57656943,2984.4,2984.3,0.001]
[1764017332838,5.53586943,2984.4,2984.3,0.001]
[1764017333014,5.58066943,2984.4,2984.3,0.001]
[1764017334404,6.03126943,2984.4,2984.3,0.001]
[1764017334897,5.58066943,2984.4,2984.3,0.001]
[1764017337136,6.34379936,2984.4,2984.3,0.001]
[1764017337741,5.89319936,2984.4,2984.3,0.001]
[1764017339540,5.88079936,2984.4,2984.3,0.001]
[1764017339833,6.34379936,2984.4,2984.3,0.001]
[1764017341017,5.88079936,2984.4,2984.3,0.001]
[1764017341612,0.31252993,2984.4,2984.3,0.4888]
[1764017341842,0.002,2984.6,2984.3,0.96]
[1764017342019,0.002,2984.6,2984.5,0.4878]
[1764017342403,0.002,2984.6,2984.5,0.959]
[1764017343939,0.002,2984.6,2984.5,4.30964499]
[1764017345123,0.002,2984.6,2984.5,0.959]
[1764017345447,0.002,2984.6,2984.5,4.30964499]
[1764017345951,0.002,2984.9,2984.5,11.22493497]
[1764017346110,0.002,2985.2,2984.8,0.4878]
[1764017346315,0.002,2985.2,2985.1,0.6856]
[1764017346742,0.002,2985.2,2985.1,1.1568]
[1764017347844,0.002,2985.2,2985.1,4.50677152]
[1764017348356,0.219104,2985.8,2985.2,0.4712]
[1764017348538,0.94159411,2986.0,2985.2,0.4712]
[1764017349113,0.216,2986.0,2985.2,0.4712]
[1764017349351,0.216,2986.0,2985.9,0.4878]
[1764017349513,0.216,2986.0,2985.5,0.4712]
[1764017349715,0.216,2986.0,2985.9,0.4878]
[1764017350045,0.216,2986.0,2985.2,0.4712]
[1764017350046,3.99420375,2986.0,2985.2,0.4712]
[1764017350418,0.570104,2985.9,2985.2,0.4712]
[1764017351830,0.405504,2985.7,2985.2,0.4712]
[1764017352640,0.405504,2985.7,2985.2,3.82103297]
[1764017352826,0.405504,2985.8,2985.2,3.82103297]
[1764017353032,0.405504,2985.8,2985.3,0.4712]
[1764017353731,0.1646,2985.9,2985.3,0.4712]
[1764017353948,0.002,2986.1,2985.8,0.4878]
[1764017354146,10.15,2987.3,2985.8,0.4878]
[1764017354147,2.40933483,2988.0,2987.3,0.1858]
[1764017354462,0.1906,2988.9,2987.5,8.323462]
[1764017354463,0.003,2987.6,2987.5,8.323462]
[1764017354664,0.003,2987.6,2987.5,0.1858]
[1764017354864,0.003,2987.6,2986.9,0.1858]
[1764017355038,0.003,2987.6,2987.0,0.70350886]
[1764017355239,0.003,2987.6,2987.1,8.84117086]
[1764017355442,0.003,2987.6,2987.5,0.1858]
[1764017355653,0.003,2987.6,2987.1,8.137662]
[1764017356051,0.003,2987.6,2986.5,0.87946838]
[1764017356052,0.6853,2987.6,2986.6,8.137662]
[1764017356230,0.405504,2987.5,2986.6,8.137662]
[1764017356436,0.58714381,2987.5,2986.6,8.137662]
[1764017356965,0.405504,2987.3,2986.4,8.137662]
[1764017357352,0.405504,2987.2,2986.4,8.137662]
[1764017358063,3.34772856,2987.1,2986.4,8.137662]
[1764017358265,3.75314806,2987.2,2986.5,8.137662]
[1764017358562,0.18163981,2987.5,2986.6,8.137662]
[1764017358734,0.405504,2987.5,2986.6,0.1858]
[1764017359261,0.405504,2987.5,2986.7,8.137662]
[1764017360268,3.75280952,2987.5,2986.7,11.48581137]
[1764017360472,3.75280952,2987.5,2986.8,8.137662]
[1764017360770,4.97027504,2987.5,2986.7,11.48582895]
[1764017360974,4.97027504,2987.5,2986.8,8.137662]
[1764017361337,8.31755922,2987.5,2986.8,8.137662]
[1764017361538,0.405504,2987.3,2986.8,8.137662]
[1764017361791,0.405504,2987.3,2986.7,8.137662]
[1764017362133,0.405504,2987.3,2986.8,8.137662]
[1764017362374,0.405504,2987.3,2986.8,11.48569854]
[1764017362543,3.7530323,2987.3,2986.8,8.137662]
[1764017362739,1.25673242,2987.3,2986.9,8.137662]
[1764017362938,0.405504,2987.4,2986.9,8.137662]
[1764017363561,0.405504,2987.4,2986.7,8.137662]
[1764017364391,3.34741566,2987.4,2986.7,11.67154253]
[1764017364544,0.405504,2987.3,2986.8,8.137662]
[1764017364872,3.56519647,2987.6,2986.8,8.137662]
[1764017365167,0.405504,2987.5,2986.8,8.137662]
[1764017365467,0.405504,2987.5,2986.9,8.323462]
[1764017365665,0.408504,2987.6,2987.4,0.1858]
[1764017366043,0.003,2987.6,2987.4,0.1858]
[1764017366858,0.003,2987.6,2987.5,0.1858]
[1764017367057,0.003,2987.6,2987.5,8.323462]
[1764017367268,0.003,2987.6,2987.5,9.02483938]
[1764017367512,0.003,2987.6,2987.4,8.137662]
[1764017367771,0.003,2987.6,2987.5,8.323462]
[1764017367968,0.003,2987.6,2987.5,8.509262]
[1764017368268,0.003,2987.6,2987.5,9.2103914]
[1764017368567,0.003,2987.6,2987.5,12.55767173]
[1764017368974,0.003,2987.6,2987.5,12.77267173]
[1764017369542,0.003,2987.6,2987.5,13.64917215]
[1764017370547,0.189,2988.9,2987.8,8.137662]
[1764017370750,0.189,2988.9,2987.7,3.34705626]
[1764017370751,0.4857,2988.8,2988.0,8.137662]
[1764017370973,0.405504,2988.7,2988.2,8.137662]
[1764017371252,0.405504,2988.7,2987.8,8.137662]
[1764017371574,0.83916022,2988.8,2988.0,8.137662]
[1764017371750,0.83916022,2988.8,2987.9,0.70130949]
[1764017371751,0.891204,2988.7,2988.1,0.70130949]
[1764017371960,0.891204,2988.7,2987.8,0.215]
[1764017372185,0.4857,2988.6,2987.9,0.70210419]
[1764017372353,0.405504,2988.5,2988.0,0.70220212]
[1764017372679,0.499,2988.1,2987.7,8.137662]
[1764017372878,1.21817685,2988.1,2987.8,0.70218319]
[1764017373048,1.70387685,2988.1,2987.5,0.87673046]
[1764017373247,0.891204,2988.0,2987.6,0.7022661]
[1764017373548,0.002,2987.6,2987.2,4.22433643]
[1764017373764,0.002,2987.6,2987.3,0.70286874]
[1764017373965,0.002,2987.6,2987.4,0.70286874]
[1764017374179,0.4877,2987.6,2987.0,0.87673046]
[1764017374380,0.4877,2987.6,2987.1,0.70360041]
[1764017374693,0.407504,2987.6,2987.2,0.70360041]
[1764017374860,1.11766565,2987.6,2987.3,0.70360041]
[1764017375064,1.11766565,2987.6,2987.4,0.70360041]
[1764017375251,1.11766565,2987.6,2987.0,0.87673046]
[1764017375574,1.11766565,2987.6,2987.1,1.58106225]
[1764017375882,1.11766565,2987.6,2987.2,0.70433179]
[1764017376081,1.11766565,2987.6,2987.3,0.70433179]
[1764017376281,1.11766565,2987.6,2987.4,0.70433179]
[1764017376584,1.11766565,2987.6,2987.5,0.70433179]
[1764017376585,0.002,2987.6,2987.5,0.70433179]
[1764017376965,0.9867,2987.6,2987.1,0.87673046]
[1764017377157,0.501,2987.6,2987.2,0.70449848]
[1764017377357,0.501,2987.6,2987.3,0.70449848]
[1764017377561,1.22049709,2987.6,2987.4,0.70449848]
[1764017377765,1.22049709,2987.6,2987.5,0.70449848]
[1764017378176,4.56766538,2987.6,2987.5,0.70449848]
[1764017378575,4.56766538,2987.6,2987.5,4.23807881]
[1764017378576,0.002,2987.6,2987.5,4.23807881]
[1764017378774,0.002,2987.6,2987.5,4.63937881]
[1764017378980,0.002,2987.6,2987.5,4.45307881]
[1764017379562,0.002,2987.6,2987.5,4.23807881]
[1764017379763,0.002,2987.6,2987.5,4.45307881]
[1764017380391,0.002,2987.6,2987.5,6.21201558]
[1764017380577,0.002,2987.6,2987.5,5.99701558]
[1764017380783,0.002,2987.6,2987.5,6.21201558]
[1764017381458,0.002,2987.6,2987.5,6.39831558]
[1764017381790,0.002,2987.6,2987.5,6.18331558]
[1764017381984,0.002,2987.6,2987.5,6.39831558]
[1764017382388,0.002,2987.6,2987.5,4.63937881]
[1764017382692,0.002,2987.6,2987.5,5.25175549]
[1764017383083,0.002,2987.6,2987.5,5.43805549]
[1764017383398,0.002,2987.6,2987.5,5.22305549]
[1764017383604,0.002,2987.6,2987.5,5.43805549]
[1764017383781,0.002,2987.6,2987.5,5.25175549]
[1764017384187,0.002,2987.6,2987.5,4.54725701]
[1764017384503,0.002,2987.6,2987.3,2.37280997]
[1764017384705,0.002,2987.6,2987.2,2.37280997]
[1764017384998,0.002,2987.6,2987.5,1.76788128]
[1764017385195,0.002,2987.6,2987.4,1.17854375]
[1764017386198,0.499,2987.5,2987.4,1.17854375]
[1764017386403,0.499,2987.5,2987.3,1.17854375]
[1764017386585,3.34927362,2987.6,2987.4,0.88425174]
[1764017386892,3.34927362,2987.6,2987.3,0.88425174]
[1764017387265,3.83497362,2987.6,2987.3,0.88425174]
[1764017387592,0.002,2987.6,2987.3,0.88425174]
[1764017387805,0.4617,2987.4,2987.3,0.88425174]
[1764017388499,3.34918697,2987.6,2987.3,0.88425174]
[1764017388708,0.002,2987.6,2987.3,0.88425174]
[1764017389180,0.002,2987.6,2987.4,0.88425174]
[1764017390082,0.002,2987.6,2987.3,0.88425174]
[1764017391167,0.002,2987.6,2987.3,0.88515228]
[1764017392105,0.4786,2987.6,2987.3,0.88615228]
[1764017393110,0.4542,2987.4,2987.3,0.88615228]
[1764017393610,0.4786,2987.6,2987.3,0.001]
[1764017393826,0.882104,2987.5,2987.4,0.88576352]
[1764017393989,0.882104,2987.5,2987.3,0.001]
[1764017393990,0.859704,2987.4,2987.3,0.001]
[1764017394336,1.86359802,2987.4,2987.3,0.001]
[1764017395325,5.2109904,2987.4,2987.3,0.001]
[1764017397994,5.2109904,2987.4,2986.7,0.61844834]
[1764017397995,8.08178278,2987.4,2986.7,0.61844834]
[1764017398290,0.4542,2987.1,2986.7,0.61844834]
[1764017398496,0.405504,2986.7,2986.6,0.001]
[1764017398697,1.073704,2986.7,2986.6,0.001]
[1764017398897,1.550304,2986.7,2986.6,0.001]
[1764017399202,5.07159131,2986.7,2986.6,0.001]
[1764017399428,0.405504,2987.0,2986.6,0.001]
[1764017399593,0.859704,2986.7,2986.6,0.001]
[1764017399922,1.073704,2986.7,2986.6,0.001]
[1764017400140,1.336304,2986.7,2986.6,0.001]
[1764017400460,1.1458,2986.7,2986.6,0.001]
[1764017400675,6.83786935,2986.6,2985.2,1.17854375]
[1764017400805,0.405504,2985.7,2984.8,1.17854375]
[1764017401004,0.405504,2985.7,2984.6,0.001]
[1764017401005,0.859704,2985.0,2984.6,0.001]
[1764017401206,4.20978775,2985.0,2984.6,0.001]
[1764017401406,4.20978775,2985.0,2984.3,0.001]
[1764017401407,0.635,2984.7,2984.3,0.001]
[1764017401627,0.635,2984.7,2983.7,0.001]
[1764017401629,1.13109811,2984.3,2983.7,0.001]
[1764017401846,0.405504,2984.0,2983.1,0.001]
[1764017402048,0.1808,2983.8,2983.1,0.001]
[1764017402214,0.405504,2983.7,2983.1,0.001]
[1764017402416,0.859704,2983.2,2983.1,0.001]
[1764017402634,1.074704,2983.2,2983.1,0.001]
[1764017402815,0.405504,2983.7,2983.1,0.001]
[1764017403016,0.4766,2983.6,2983.1,0.001]
[1764017403340,0.1808,2984.1,2983.2,0.0991]
[1764017403637,0.405504,2984.2,2983.2,0.0991]
[1764017403837,0.882104,2984.2,2983.2,0.0991]
[1764017404039,0.215,2984.3,2983.2,6.99659163]
[1764017404443,0.94059411,2984.3,2983.3,0.1933]
[1764017404610,0.882104,2984.2,2983.2,0.0991]
[1764017404817,1.60769811,2984.2,2983.1,0.001]
[1764017405120,1.13109811,2984.0,2983.1,0.001]
[1764017405327,1.13109811,2983.8,2983.1,0.001]
[1764017405527,0.215,2983.7,2983.1,0.001]
[1764017405722,0.6916,2983.7,2983.1,0.001]
[1764017405927,0.405504,2983.6,2983.1,0.001]
[1764017406537,0.405504,2983.6,2983.5,0.1933]
[1764017406723,0.4542,2983.6,2983.1,0.001]
[1764017406927,0.9308,2983.6,2983.1,0.001]
[1764017407245,4.21180912,2983.2,2983.1,0.001]
[1764017407458,5.98134062,2983.2,2983.1,0.001]
[1764017407702,6.45794062,2983.2,2983.1,0.001]
[1764017407821,1.13109811,2983.1,2982.9,0.001]
[1764017408161,1.13109811,2983.1,2981.2,0.001]
[1764017408162,0.405504,2982.6,2981.2,0.001]
[1764017408328,0.1215,2981.6,2981.2,0.001]
[1764017408518,0.215,2981.8,2981.2,0.001]
[1764017408718,0.215,2981.8,2981.6,0.1963]
[1764017409016,0.405504,2982.4,2981.7,0.1963]
[1764017409337,0.216,2982.5,2981.7,6.90383852]
[1764017409539,0.216,2982.5,2981.7,7.10013852]
[1764017409741,0.621504,2982.8,2981.8,0.1963]
[1764017409915,0.621504,2982.8,2981.5,0.001]
[1764017409916,1.13109811,2982.6,2981.5,0.001]
[1764017410361,0.405504,2982.4,2981.5,0.001]
[1764017410521,1.040504,2981.6,2981.5,0.001]
[1764017411023,0.216,2981.7,2981.5,0.001]
[1764017411543,0.405504,2982.0,2981.5,0.001]
[1764017412348,0.882104,2982.0,2981.5,0.001]
[1764017412562,0.4542,2981.6,2981.5,0.001]
[1764017412738,1.336304,2981.6,2981.5,0.001]
[1764017413157,1.552304,2981.6,2981.5,0.001]
[1764017413359,4.90620794,2981.6,2981.5,0.001]
[1764017413670,6.45780178,2981.6,2981.5,0.001]
[1764017417692,2.41129784,2981.6,2981.5,0.001]
[1764017417909,1.80129811,2981.6,2981.5,0.001]
[1764017418058,5.63180205,2981.6,2981.5,0.001]
[1764017419981,0.4897,2981.0,2980.6,0.001]
[1764017420150,8.56956746,2980.7,2980.6,0.001]
[1764017420487,8.78556746,2980.7,2980.6,0.001]
[1764017420682,2.43199811,2980.7,2980.6,0.001]
[1764017421484,8.31880474,2980.7,2980.6,0.001]
[1764017422483,6.46244511,2980.3,2980.0,0.001]
[1764017422680,11.72867497,2980.3,2980.0,0.001]
[1764017422899,2.96734262,2980.3,2980.0,0.001]
[1764017423198,2.32109811,2980.3,2980.0,0.001]
[1764017423693,5.67646501,2980.3,2980.0,0.001]
[1764017424917,0.72559411,2980.3,2980.0,0.001]
[1764017425130,5.27096101,2980.3,2980.0,0.001]
[1764017425404,12.51433436,2980.3,2980.0,0.001]
[1764017425581,14.10129349,2980.3,2980.0,0.001]
[1764017426380,14.05129349,2980.3,2980.0,0.001]
[1764017426689,6.72912414,2980.3,2980.0,0.001]
[1764017427175,4.5453669,2980.3,2980.0,0.001]
[1764017427379,7.4712749,2980.3,2980.0,0.001]
[1764017428203,7.1351729,2980.3,2980.0,0.001]
[1764017428382,5.67646501,2980.3,2980.0,0.001]
[1764017428885,4.70246501,2980.3,2980.1,0.001]
[1764017429087,5.99793735,2980.3,2980.1,0.001]
[1764017429485,4.78666101,2980.3,2980.1,0.001]
[1764017429681,5.27096101,2980.3,2980.1,0.001]
[1764017429978,4.70246501,2980.3,2980.1,0.001]
[1764017430180,1.34709811,2980.3,2980.1,0.001]
[1764017430384,0.216,2980.3,2980.2,0.1993]
[1764017430587,0.002,2980.5,2980.2,0.1993]
[1764017430788,0.002,2980.5,2980.4,0.1983]
[1764017431321,0.002,2980.5,2980.2,0.001]
[1764017432518,0.405504,2980.4,2980.2,0.001]
[1764017432701,0.216,2980.3,2980.2,0.001]
[1764017433494,0.216,2980.3,2980.2,0.1993]
[1764017433703,0.002,2980.5,2980.2,7.10855022]
[1764017433989,0.002,2980.5,2980.4,0.1983]
[1764017434192,0.002,2980.5,2980.4,0.90915502]
[1764017434399,0.002,2980.5,2980.4,1.10745502]
[1764017435886,0.002,2980.5,2980.4,4.46270934]
[1764017436092,0.002,2980.5,2980.4,5.64125309]
[1764017436288,0.002,2980.5,2980.4,4.46270934]
[1764017436588,0.002,2980.8,2980.4,12.94109926]
[1764017436793,0.002,2980.8,2980.7,0.1983]
[1764017437025,0.002,2980.8,2980.7,1.37824161]
[1764017437223,0.002,2981.1,2980.7,0.3966]
[1764017437425,0.002,2981.1,2981.0,1.37907032]
[1764017437938,0.002,2981.1,2981.0,4.93194932]
[1764017438136,0.002,2981.1,2981.0,5.64280434]
[1764017438340,0.002,2981.1,2981.0,6.95878362]
[1764017438508,0.1999,2982.7,2981.1,0.72559411]
[1764017438705,0.4159,2982.7,2981.9,0.1839]
[1764017439008,0.216,2982.7,2981.9,0.3678]
[1764017439399,0.216,2982.7,2982.0,0.1839]
[1764017439604,0.216,2982.7,2982.6,0.1839]
[1764017440442,0.1999,2982.9,2982.0,1.17856653]
[1764017440738,0.405504,2982.8,2981.9,1.17856653]
[1764017440904,0.889804,2982.8,2981.7,1.17856653]
[1764017441100,0.889804,2982.8,2981.8,3.35366919]
[1764017441643,0.4843,2982.7,2981.7,3.64839424]
[1764017441945,0.405504,2982.6,2981.7,7.0021857]
[1764017442144,0.405504,2982.4,2981.7,3.64839424]
[1764017442804,0.405504,2982.4,2981.6,3.35389162]
[1764017443039,0.405504,2982.4,2981.4,1.17856653]
[1764017443040,0.405504,2982.2,2981.4,1.17856653]
[1764017443242,0.405504,2981.6,2981.1,0.0828]
[1764017443939,0.405504,2981.6,2980.8,4.53336194]
[1764017444234,0.405504,2981.4,2980.7,3.35489673]
[1764017444743,0.405504,2981.4,2980.6,3.35498618]
[1764017445542,0.405504,2981.4,2980.6,6.71001536]
[1764017445925,0.405504,2981.5,2980.7,0.1839]
[1764017446132,3.56983667,2981.7,2980.8,6.70960814]
[1764017446319,0.405504,2981.6,2980.9,0.68935081]
[1764017446516,0.94159411,2981.7,2980.9,0.87325081]
[1764017446705,3.56979739,2981.7,2980.9,0.68935081]
[1764017446908,0.002,2981.4,2980.5,1.17956653]
[1764017447122,0.002,2981.4,2980.6,3.35500971]
[1764017447708,0.405504,2981.2,2980.5,1.17956653]
[1764017447908,0.405504,2981.0,2980.5,0.001]
[1764017448312,0.002,2981.4,2980.9,0.1839]
[1764017448517,0.407504,2981.4,2980.9,0.1839]
[1764017449109,3.76164987,2981.4,2980.9,0.1839]
[1764017449844,0.002,2981.4,2980.9,0.1839]
[1764017450028,0.002,2981.4,2980.9,0.3678]
[1764017450410,0.002,2981.4,2980.9,3.53854495]
[1764017450746,0.407504,2981.4,2980.9,0.1839]
[1764017451544,0.002,2981.4,2980.9,3.72246205]
[1764017451705,0.002,2981.4,2980.9,4.43019652]
[1764017451914,0.002,2981.4,2981.0,0.1839]
[1764017452108,0.002,2981.4,2981.3,0.1839]
[1764017452334,0.002,2981.4,2981.3,3.53814143]
[1764017452651,0.002,2981.4,2981.3,3.72204143]
[1764017452856,0.002,2981.4,2981.3,4.93271538]
[1764017453062,0.002,2981.4,2981.3,6.14482432]
[1764017453264,0.002,2981.7,2981.3,11.67474065]
[1764017453426,0.002,2981.7,2981.6,0.1839]
[1764017453623,0.002,2981.7,2981.6,0.3678]
[1764017453926,0.002,2981.7,2981.6,0.54452105]
[1764017454452,0.002,2981.7,2981.6,3.89842499]
[1764017454658,0.002,2981.7,2981.6,3.71452499]
[1764017454831,0.002,2981.7,2981.3,5.47915742]
[1764017455038,0.002,2981.7,2981.6,0.1839]
[1764017456256,0.002,2981.7,2981.4,3.35412893]
[1764017456583,0.002,2981.7,2981.6,0.1839]
[1764017457361,0.002,2981.7,2981.2,3.35427437]
[1764017457737,0.002,2981.7,2981.2,7.04405576]
[1764017457936,0.002,2981.7,2981.6,0.1839]
[1764017458662,0.002,2981.7,2981.6,3.53780394]
[1764017459959,0.002,2981.7,2981.2,0.33542744]
[1764017459960,0.9568,2981.7,2981.2,4.57902653]
[1764017460160,0.4577,2981.6,2981.2,4.24359909]
[1764017460368,0.4991,2981.7,2981.2,4.24359909]
[1764017460369,0.002,2981.7,2981.6,0.1839]